Departmental Area,Entity,Payment Date,Expense type,Expense Area,Supplier Name,Payment Reference,      Invoice Distribution Amount      ,Description,Supplier Type,Expenditure Type
UK Statistics Family,Office for National Statistics,04/03/2024,Training & Development,PBS Leadership,Ernst & Young LLP,293778," 9,613.80 ",Training and Educational Services,Large,Programme Expenditure
UK Statistics Family,Office for National Statistics,04/03/2024,Exp - Purchase Of Goods And Services Consultants,Internal Audit,Ernst & Young LLP,293778," 41,400.00 ",Consultancy,Large,Programme Expenditure
UK Statistics Family,Office for National Statistics,04/03/2024,Exp - Purchase Of Goods/Services - Training & Development - Professional Membership Fees,Portfolio Delivery,Cabinet Office,293781," 3,780.00 ",Training and Educational Services,Large,Programme Expenditure
UK Statistics Family,Office for National Statistics,04/03/2024,Other Goods And Services,FAST STREAM RECHARGES - CABINET OFFICE,Cabinet Office,293781," 26,400.00 ",Fast Stream Services,Large,Programme Expenditure
UK Statistics Family,Office for National Statistics,05/03/2024,Exp - Purchase Of Goods/Services - IT Contractual Services,DATA ENGINEERING OPERATIONS AND DELIVERY,CTS (Cloud Technology Solutions Ltd),293998," 36,842.40 ",Information Management Services,Large,Programme Expenditure
UK Statistics Family,Office for National Statistics,05/03/2024,Exp - Purchase Of Goods/Services - Contractors,Security Advisory,Talent International,294005," 17,999.76 ",Information Management Services,SME,Programme Expenditure
UK Statistics Family,Office for National Statistics,05/03/2024,Exp - Purchase Of Goods/Services - Contractors,CDIO UNGP,Talent International,294005," 17,999.76 ",Information Management Services,SME,Programme Expenditure
UK Statistics Family,Office for National Statistics,06/03/2024,"ICT Outsourcing, Maintenance And Support",IT Operations,Bytes Software Services Ltd,294154," 30,966.55 ",Information Management Services,Large,Programme Expenditure
UK Statistics Family,Office for National Statistics,06/03/2024,EXP - PURCHASE OF GOODS/SERVICES -  NON IT CONTRACTUAL PAYMENTS,People Solutions,Cabinet Office,294157," 258,151.20 ",Government People Group Services,Large,Programme Expenditure
UK Statistics Family,Office for National Statistics,06/03/2024,Other Goods And Services,Security And Information Management Saim,Cabinet Office,294157,"-41,688.00 ",Security Vetting Services,Large,Programme Expenditure
UK Statistics Family,Office for National Statistics,06/03/2024,Exp - Permanent UK Staff - PRP Voucher Payments,ONS Corporate Funds,Edenred (UK Group) Limited,294161," 73,600.00 ",Performance Reward Vouchers,Large,Programme Expenditure
UK Statistics Family,Office for National Statistics,07/03/2024,Exp - Purchase Of Goods/Services - Contractors,Strategy And Engagement,Natcen Social Research,294254," 36,873.60 ",Statistical Services,Large,Programme Expenditure
UK Statistics Family,Office for National Statistics,07/03/2024,Specialist User Software And Hardware,CLOUD ARCHITECTURE,Ibm United Kingdom Ltd,294256," 27,238.33 ",Information Management Services,Large,Programme Expenditure
UK Statistics Family,Office for National Statistics,07/03/2024,Exp - Purchase Of Goods/Services - Contractors,Testing,La International,294258," 21,500.87 ",Information Management Services,SME,Programme Expenditure
UK Statistics Family,Office for National Statistics,07/03/2024,Exp - Purchase Of Goods/Services - Contractors,Strategy And Architecture,La International,294258," 18,482.40 ",Information Management Services,SME,Programme Expenditure
UK Statistics Family,Office for National Statistics,07/03/2024,Exp - Purchase Of Goods/Services - Contractors,IT Applications,La International,294258," 13,743.54 ",Information Management Services,SME,Programme Expenditure
UK Statistics Family,Office for National Statistics,07/03/2024,Exp - Purchase Of Goods/Services - IT Contractual Services,PARTNERSHIP DEVELOPMENT,Diegesis Limited,294260,"-22,274.90 ",Information Management Services,Large,Programme Expenditure
UK Statistics Family,Office for National Statistics,07/03/2024,Exp - Purchase Of Goods/Services - IT Contractual Services,IT Applications,Diegesis Limited,294260," 56,448.10 ",Information Management Services,Large,Programme Expenditure
UK Statistics Family,Office for National Statistics,07/03/2024,Exp - Purchase Of Goods/Services - Incentive Payments,Interviewer Support,Pluxee UK Ltd,294268," 1,830.23 ",Survey Response Incentive Vouchers,Large,Programme Expenditure
UK Statistics Family,Office for National Statistics,07/03/2024,Exp - Purchase Of Goods/Services - Incentive Payments,Interviewer Support,Pluxee UK Ltd,294268," 1,945.25 ",Survey Response Incentive Vouchers,Large,Programme Expenditure
UK Statistics Family,Office for National Statistics,07/03/2024,Exp - Purchase Of Goods/Services - Incentive Payments,Interviewer Support,Pluxee UK Ltd,294268," 30,284.78 ",Survey Response Incentive Vouchers,Large,Programme Expenditure
UK Statistics Family,Office for National Statistics,07/03/2024,Exp - Purchase Of Goods/Services - Incentive Payments,Interviewer Support,Pluxee UK Ltd,294268, 167.62 ,Survey Response Incentive Vouchers,Large,Programme Expenditure
UK Statistics Family,Office for National Statistics,07/03/2024,Exp - Purchase Of Goods/Services - Incentive Payments,Interviewer Support,Pluxee UK Ltd,294268," 4,999.39 ",Survey Response Incentive Vouchers,Large,Programme Expenditure
UK Statistics Family,Office for National Statistics,07/03/2024,Exp - Purchase Of Goods/Services - Incentive Payments,Interviewer Support,Pluxee UK Ltd,294268," 39,557.00 ",Survey Response Incentive Vouchers,Large,Programme Expenditure
UK Statistics Family,Office for National Statistics,07/03/2024,Exp - Purchase Of Goods/Services - Incentive Payments,Crime Statistics,Pluxee UK Ltd,294268, 11.24 ,Survey Response Incentive Vouchers,Large,Programme Expenditure
UK Statistics Family,Office for National Statistics,07/03/2024,Exp - Purchase Of Goods/Services - Incentive Payments,Crime Income And Wealth,Pluxee UK Ltd,294268," 12,931.39 ",Survey Response Incentive Vouchers,Large,Programme Expenditure
UK Statistics Family,Office for National Statistics,07/03/2024,Exp - Purchase Of Goods/Services - Incentive Payments,Crime Income And Wealth,Pluxee UK Ltd,294268, 197.20 ,Survey Response Incentive Vouchers,Large,Programme Expenditure
UK Statistics Family,Office for National Statistics,07/03/2024,Exp - Purchase Of Goods And Services Consultants,Economic Statistics,Parity Resources Limited,294269," 2,916.84 ",Information Management Services,Large,Programme Expenditure
UK Statistics Family,Office for National Statistics,07/03/2024,Exp - Purchase Of Goods And Services Consultants,Policy Secretariat,Parity Resources Limited,294269," 1,143.38 ",Information Management Services,Large,Programme Expenditure
UK Statistics Family,Office for National Statistics,07/03/2024,Exp - Purchase Of Goods/Services - Contractors,Testing,Parity Resources Limited,294269," 5,398.44 ",Information Management Services,Large,Programme Expenditure
UK Statistics Family,Office for National Statistics,07/03/2024,Exp - Purchase Of Goods/Services - Contractors,Strategy And Architecture,Parity Resources Limited,294269," 10,947.31 ",Information Management Services,Large,Programme Expenditure
UK Statistics Family,Office for National Statistics,07/03/2024,Exp - Purchase Of Goods/Services - Contractors,Strategy And Architecture,Parity Resources Limited,294269," 4,500.00 ",Information Management Services,Large,Programme Expenditure
UK Statistics Family,Office for National Statistics,07/03/2024,Exp - Short-Term Contract & Agency Staff - Full Cost,Interviewer Management FiF,Parity Resources Limited,294269," 6,441.78 ",Information Management Services,Large,Programme Expenditure
UK Statistics Family,Office for National Statistics,07/03/2024,Exp - Purchase Of Goods/Services - Field Costs,Interviewer Management FiF,Parity Resources Limited,294269," 1,153.01 ",Information Management Services,Large,Programme Expenditure
UK Statistics Family,Office for National Statistics,07/03/2024,Exp - Short-Term Contract & Agency Staff - Full Cost,Interviewer Support,Parity Resources Limited,294269, 243.96 ,Information Management Services,Large,Programme Expenditure
UK Statistics Family,Office for National Statistics,07/03/2024,Exp - Purchase Of Goods/Services - Field Costs,Interviewer Support,Parity Resources Limited,294269, 10.50 ,Information Management Services,Large,Programme Expenditure
UK Statistics Family,Office for National Statistics,07/03/2024,Surveys,Analysis Microdata And Engagement,Decisions Maker Services Ltd,294270," 39,330.00 ",Statistical Services,SME,Programme Expenditure
UK Statistics Family,Office for National Statistics,08/03/2024,"ICT Outsourcing, Maintenance And Support",IT Operations,Eficode UK Limited,294345," 381,677.26 ",Software Licenses,SME,Programme Expenditure
UK Statistics Family,Office for National Statistics,08/03/2024,Exp - Purchase Of Goods/Services - IT Contractual Services,CLOUD ARCHITECTURE,CTS (Cloud Technology Solutions Ltd),294349," 50,184.00 ",Information Management Services,Large,Programme Expenditure
UK Statistics Family,Office for National Statistics,08/03/2024,Exp - Purchase Of Goods/Services - IT Contractual Services,CDIO UNGP,CTS (Cloud Technology Solutions Ltd),294349," 19,633.74 ",Information Management Services,Large,Programme Expenditure
UK Statistics Family,Office for National Statistics,08/03/2024,Exp - Purchase Of Goods/Services - IT Contractual Services,CDIO UNGP,CTS (Cloud Technology Solutions Ltd),294349," 87,137.52 ",Information Management Services,Large,Programme Expenditure
UK Statistics Family,Office for National Statistics,08/03/2024,Exp - Purchase Of Goods/Services - IT Contractual Services,Digital Delivery,ANDigital Limited,294351," 139,260.00 ",Information Management Services,large,Programme Expenditure
UK Statistics Family,Office for National Statistics,11/03/2024,PPE - NON-PROPERTY (LEASED NON-PFI) - COST - ADDITIONS (AS LESSEE),IT Operations,Crown Hosting Data Centres Limited,294424," 63,152.40 ",Information Management Services,SME,Programme Expenditure
UK Statistics Family,Office for National Statistics,11/03/2024,"ICT Outsourcing, Maintenance And Support",IT Operations,Crown Hosting Data Centres Limited,294424," 2,580.00 ",Information Management Services,SME,Programme Expenditure
UK Statistics Family,Office for National Statistics,11/03/2024,Specialist User Software And Hardware,IT Operations,Sas Software Ltd,294425," 1,464,891.60 ",Software Licenses,Large,Programme Expenditure
UK Statistics Family,Office for National Statistics,11/03/2024,Permanent Staff Costs,FAST STREAM RECHARGES - CABINET OFFICE,Cabinet Office,294433," 286,393.00 ",Fast Stream Services,Large,Programme Expenditure
UK Statistics Family,Office for National Statistics,13/03/2024,Exp - Purchase Of Goods And Services Consultants,Policy Secretariat,Natcen Social Research,294785," 91,719.60 ",Statistical Services,Large,Programme Expenditure
UK Statistics Family,Office for National Statistics,13/03/2024,Accommodation & Building Management,Property Newport,Vinci Construction UK Limited,294787," 15,320.87 ",Facilities Mangement Services,Large,Programme Expenditure
UK Statistics Family,Office for National Statistics,13/03/2024,Exp - Purchase Of Goods/Services - Accommodation & Bldng Management - Miscellaneous Minor Works,Property Newport,Vinci Construction UK Limited,294787," 35,093.38 ",Facilities Mangement Services,Large,Programme Expenditure
UK Statistics Family,Office for National Statistics,13/03/2024,Exp - Purchase Of Goods/Services - Accommodation & Bldng Management - Miscellaneous Minor Works,Property Titchfield,Vinci Construction UK Limited,294787," 11,707.55 ",Facilities Mangement Services,Large,Programme Expenditure
UK Statistics Family,Office for National Statistics,13/03/2024,Exp - Purchase Of Goods/Services - Accommodation & Bldng Management - Miscellaneous Minor Works,PROPERTY LONDON 2MS,Vinci Construction UK Limited,294787," 2,139.71 ",Facilities Mangement Services,Large,Programme Expenditure
UK Statistics Family,Office for National Statistics,13/03/2024,Exp - Purchase Of Goods/Services - Contractors,Security Advisory,Certes Computing Ltd,294793," 20,538.76 ",Information Management Services,SME,Programme Expenditure
UK Statistics Family,Office for National Statistics,13/03/2024,Exp - Purchase Of Goods/Services - Contractors,CDIO UNGP,Certes Computing Ltd,294793," 16,467.70 ",Information Management Services,SME,Programme Expenditure
UK Statistics Family,Office for National Statistics,13/03/2024,Exp - Purchase Of Goods/Services - Contractors,IT Applications,Certes Computing Ltd,294793," 15,444.65 ",Information Management Services,SME,Programme Expenditure
UK Statistics Family,Office for National Statistics,13/03/2024,Exp - Purchase Of Goods/Services - Contractors,IT Applications,Certes Computing Ltd,294793," 14,398.56 ",Information Management Services,SME,Programme Expenditure
UK Statistics Family,Office for National Statistics,13/03/2024,Exp - Purchase Of Goods/Services - IT Contractual Services,PARTNERSHIP DEVELOPMENT,CGI IT UK Limited,294795," 396,306.72 ",Information Management Services,Large,Programme Expenditure
UK Statistics Family,Office for National Statistics,13/03/2024,Exp - Purchase Of Goods/Services - Postage,REPROGRAPHICS,Royal Mail Group Ltd,294797," 95,374.92 ",Postage,Large,Programme Expenditure
UK Statistics Family,Office for National Statistics,13/03/2024,Exp - Purchase Of Goods/Services - Postage,Survey Processing Centre,Royal Mail Group Ltd,294797," 1,311.10 ",Postage,Large,Programme Expenditure
UK Statistics Family,Office for National Statistics,13/03/2024,EXP - PURCHASE OF GOODS/SERVICES - DATA ACQUISITION,Prices Division,University of Strathclyde,294801," 43,022.40 ",Data Acquisition,Large,Programme Expenditure
UK Statistics Family,Office for National Statistics,13/03/2024,Hosting,CLOUD ARCHITECTURE,CTS (Cloud Technology Solutions Ltd),294803," 114,682.80 ",Information Management Services,Large,Programme Expenditure
UK Statistics Family,Office for National Statistics,13/03/2024,Exp - Purchase Of Goods/Services - IT Contractual Services,CDIO UNGP,CTS (Cloud Technology Solutions Ltd),294803," 54,010.80 ",Information Management Services,Large,Programme Expenditure
UK Statistics Family,Office for National Statistics,13/03/2024,Surveys,Crime Statistics,Verian,294805," 237,938.00 ",Statistical Services,SME,Programme Expenditure
UK Statistics Family,Office for National Statistics,13/03/2024,Surveys,Crime Statistics,Verian,294805," 522,304.00 ",Statistical Services,SME,Programme Expenditure
UK Statistics Family,Office for National Statistics,13/03/2024,Exp - Purchase Of Goods/Services - IT Contractual Services,PARTNERSHIP DEVELOPMENT,Diegesis Limited,294809," 42,220.34 ",Information Management Services,Large,Programme Expenditure
UK Statistics Family,Office for National Statistics,13/03/2024,Exp - Purchase Of Goods/Services - IT Contractual Services,IT Applications,Diegesis Limited,294809," 159,825.75 ",Information Management Services,Large,Programme Expenditure
UK Statistics Family,Office for National Statistics,13/03/2024,Exp - Purchase Of Goods/Services - IT Contractual Services,IT Applications,Diegesis Limited,294809," 4,404.91 ",Information Management Services,Large,Programme Expenditure
UK Statistics Family,Office for National Statistics,13/03/2024,Exp - Purchase Of Goods/Services - Contractors,CDIO UNGP,SmartSourcing Ltd,294810," 25,500.00 ",Information Management Services,SME,Programme Expenditure
UK Statistics Family,Office for National Statistics,13/03/2024,Exp - Purchase Of Goods/Services - Incentive Payments,Interviewer Support,Pluxee UK Ltd,294813," 6,799.82 ",Survey Response Incentive Vouchers,Large,Programme Expenditure
UK Statistics Family,Office for National Statistics,13/03/2024,Exp - Purchase Of Goods/Services - Incentive Payments,Interviewer Support,Pluxee UK Ltd,294813," 1,762.08 ",Survey Response Incentive Vouchers,Large,Programme Expenditure
UK Statistics Family,Office for National Statistics,13/03/2024,Exp - Purchase Of Goods/Services - Incentive Payments,Interviewer Support,Pluxee UK Ltd,294813," 35,736.23 ",Survey Response Incentive Vouchers,Large,Programme Expenditure
UK Statistics Family,Office for National Statistics,13/03/2024,Exp - Purchase Of Goods/Services - Incentive Payments,Interviewer Support,Pluxee UK Ltd,294813, 119.83 ,Survey Response Incentive Vouchers,Large,Programme Expenditure
UK Statistics Family,Office for National Statistics,13/03/2024,Exp - Purchase Of Goods/Services - Incentive Payments,Interviewer Support,Pluxee UK Ltd,294813," 10,198.83 ",Survey Response Incentive Vouchers,Large,Programme Expenditure
UK Statistics Family,Office for National Statistics,13/03/2024,Exp - Purchase Of Goods/Services - Incentive Payments,Interviewer Support,Pluxee UK Ltd,294813," 119,188.19 ",Survey Response Incentive Vouchers,Large,Programme Expenditure
UK Statistics Family,Office for National Statistics,13/03/2024,Exp - Purchase Of Goods/Services - Incentive Payments,Strategy And Engagement,Pluxee UK Ltd,294813, 98.70 ,Survey Response Incentive Vouchers,Large,Programme Expenditure
UK Statistics Family,Office for National Statistics,13/03/2024,Exp - Purchase Of Goods/Services - Incentive Payments,Crime Statistics,Pluxee UK Ltd,294813," 10,418.99 ",Survey Response Incentive Vouchers,Large,Programme Expenditure
UK Statistics Family,Office for National Statistics,13/03/2024,Exp - Purchase Of Goods/Services - Incentive Payments,Crime Income And Wealth,Pluxee UK Ltd,294813," 1,513.51 ",Survey Response Incentive Vouchers,Large,Programme Expenditure
UK Statistics Family,Office for National Statistics,13/03/2024,Exp - Purchase Of Goods/Services - Incentive Payments,Crime Income And Wealth,Pluxee UK Ltd,294813, 202.13 ,Survey Response Incentive Vouchers,Large,Programme Expenditure
UK Statistics Family,Office for National Statistics,13/03/2024,Exp - Purchase Of Goods/Services - Incentive Payments,Public Service Productivity Review,Pluxee UK Ltd,294813, 88.74 ,Survey Response Incentive Vouchers,Large,Programme Expenditure
UK Statistics Family,Office for National Statistics,13/03/2024,Exp - Purchase Of Goods/Services - Contractors,Testing,Parity Resources Limited,294814," 2,699.22 ",Information Management Services,Large,Programme Expenditure
UK Statistics Family,Office for National Statistics,13/03/2024,Exp - Purchase Of Goods/Services - Contractors,Security Advisory,Parity Resources Limited,294814," 33,981.90 ",Information Management Services,Large,Programme Expenditure
UK Statistics Family,Office for National Statistics,13/03/2024,Exp - Purchase Of Goods/Services - Contractors,CDIO UNGP,Parity Resources Limited,294814," 23,002.50 ",Information Management Services,Large,Programme Expenditure
UK Statistics Family,Office for National Statistics,13/03/2024,Exp - Purchase Of Goods/Services - Contractors,Strategy And Architecture,Parity Resources Limited,294814," 4,210.50 ",Information Management Services,Large,Programme Expenditure
UK Statistics Family,Office for National Statistics,13/03/2024,Exp - Purchase Of Goods/Services - Contractors,IT Applications,Parity Resources Limited,294814," 7,800.00 ",Information Management Services,Large,Programme Expenditure
UK Statistics Family,Office for National Statistics,13/03/2024,Exp - Short-Term Contract & Agency Staff - Full Cost,Interviewer Management FiF,Parity Resources Limited,294814," 7,373.20 ",Information Management Services,Large,Programme Expenditure
UK Statistics Family,Office for National Statistics,13/03/2024,Exp - Purchase Of Goods/Services - Field Costs,Interviewer Management FiF,Parity Resources Limited,294814, 793.97 ,Information Management Services,Large,Programme Expenditure
UK Statistics Family,Office for National Statistics,13/03/2024,Exp - Short-Term Contract & Agency Staff - Full Cost,Interviewer Support,Parity Resources Limited,294814, 174.88 ,Information Management Services,Large,Programme Expenditure
UK Statistics Family,Office for National Statistics,13/03/2024,Exp - Purchase Of Goods/Services - Field Costs,Interviewer Support,Parity Resources Limited,294814, 8.40 ,Information Management Services,Large,Programme Expenditure
UK Statistics Family,Office for National Statistics,13/03/2024,Surveys,Analysis Microdata And Engagement,Decisions Maker Services Ltd,294815," 44,670.00 ",Statistical Services,SME,Programme Expenditure
UK Statistics Family,Office for National Statistics,13/03/2024,EXP - PURCHASE OF GOODS/SERVICES - DATA ACQUISITION,Data As A Service,Telefonica UK Limited,294816," 56,309.59 ",Data Acquisition,Large,Programme Expenditure
UK Statistics Family,Office for National Statistics,14/03/2024,Exp - Purchase Of Goods/Services - Postage,Interviewer Support,Banner Group Ltd,294931," 75,000.00 ",Postage,SME,Programme Expenditure
UK Statistics Family,Office for National Statistics,14/03/2024,Exp - Purchase Of Goods/Services - IT Contractual Services,Data Architecture,ANDigital Limited,294933," 19,428.00 ",Information Management Services,large,Programme Expenditure
UK Statistics Family,Office for National Statistics,14/03/2024,Exp - Purchase Of Goods/Services - IT Contractual Services,CDIO UNGP,ANDigital Limited,294933," 19,428.00 ",Information Management Services,large,Programme Expenditure
UK Statistics Family,Office for National Statistics,14/03/2024,Exp - Purchase Of Goods/Services - IT Contractual Services,CDIO UNGP,ANDigital Limited,294933," 14,112.00 ",Information Management Services,large,Programme Expenditure
UK Statistics Family,Office for National Statistics,14/03/2024,Exp - Purchase Of Goods/Services - IT Contractual Services,Digital Delivery,ANDigital Limited,294933," 106,560.00 ",Information Management Services,large,Programme Expenditure
UK Statistics Family,Office for National Statistics,14/03/2024,Exp - Purchase Of Goods/Services - IT Contractual Services,Digital Delivery,ANDigital Limited,294933," 17,160.00 ",Information Management Services,large,Programme Expenditure
UK Statistics Family,Office for National Statistics,14/03/2024,Exp - Purchase Of Goods/Services - Incentive Payments,Interviewer Support,Pluxee UK Ltd,294934," 1,153.62 ",Survey Response Incentive Vouchers,Large,Programme Expenditure
UK Statistics Family,Office for National Statistics,14/03/2024,Exp - Purchase Of Goods/Services - Incentive Payments,Interviewer Support,Pluxee UK Ltd,294934, 542.30 ,Survey Response Incentive Vouchers,Large,Programme Expenditure
UK Statistics Family,Office for National Statistics,14/03/2024,Exp - Purchase Of Goods/Services - Incentive Payments,Interviewer Support,Pluxee UK Ltd,294934," 21,711.72 ",Survey Response Incentive Vouchers,Large,Programme Expenditure
UK Statistics Family,Office for National Statistics,14/03/2024,Exp - Purchase Of Goods/Services - Incentive Payments,Interviewer Support,Pluxee UK Ltd,294934, 44.37 ,Survey Response Incentive Vouchers,Large,Programme Expenditure
UK Statistics Family,Office for National Statistics,14/03/2024,Exp - Purchase Of Goods/Services - Incentive Payments,Interviewer Support,Pluxee UK Ltd,294934," 21,001.80 ",Survey Response Incentive Vouchers,Large,Programme Expenditure
UK Statistics Family,Office for National Statistics,14/03/2024,Exp - Purchase Of Goods/Services - Incentive Payments,Crime Statistics,Pluxee UK Ltd,294934," 1,202.92 ",Survey Response Incentive Vouchers,Large,Programme Expenditure
UK Statistics Family,Office for National Statistics,14/03/2024,Exp - Purchase Of Goods/Services - Incentive Payments,Crime Income And Wealth,Pluxee UK Ltd,294934, 921.91 ,Survey Response Incentive Vouchers,Large,Programme Expenditure
UK Statistics Family,Office for National Statistics,14/03/2024,Exp - Purchase Of Goods/Services - Incentive Payments,Crime Income And Wealth,Pluxee UK Ltd,294934, 103.53 ,Survey Response Incentive Vouchers,Large,Programme Expenditure
UK Statistics Family,Office for National Statistics,18/03/2024,FM Contract Payments,Vinci Payments,Vinci Construction UK Limited,295137," 29,425.50 ",Facilities Mangement Services,Large,Programme Expenditure
UK Statistics Family,Office for National Statistics,18/03/2024,EXP - PURCHASE OF GOODS/SERVICES - DATA ACQUISITION,International Trade And Transactions,Bureau Van Dijk Electronic Publishing,295143," 36,000.00 ",Data Acquisition,SME,Programme Expenditure
UK Statistics Family,Office for National Statistics,18/03/2024,EXP - PURCHASE OF GOODS/SERVICES -  NON IT CONTRACTUAL PAYMENTS,Crime Statistics,Edinburgh Innovations,295146," 108,000.00 ",Development and Feasibility Services,SME,Programme Expenditure
UK Statistics Family,Office for National Statistics,19/03/2024,Training & Development,MSA Central,University of Kent,295354," 41,515.00 ",Training and Educational Services,Large,Programme Expenditure
UK Statistics Family,Office for National Statistics,19/03/2024,IT (Owned) At Cost - Additions,IT Operations,Xma Limited,295355," 666,078.00 ",Computers and Peripherals,Large,Programme Expenditure
UK Statistics Family,Office for National Statistics,19/03/2024,Exp - Purchase Of Goods/Services - Telecoms,Data Architecture,Bytes Software Services Ltd,295357," 57,668.07 ",Software Licenses,Large,Programme Expenditure
UK Statistics Family,Office for National Statistics,19/03/2024,Exp - Print & Post,Interviewer Support,APS Group,295358," 25,932.86 ",Print and Post Services,Large,Programme Expenditure
UK Statistics Family,Office for National Statistics,19/03/2024,End User Software And Hardware,IT Operations,Boxxe Ltd,295362," 104,405.40 ",Software Licenses,SME,Programme Expenditure
UK Statistics Family,Office for National Statistics,19/03/2024,Exp - Purchase Of Goods/Services - Contractors,Data Capability,Parity Resources Limited,295368," 15,678.91 ",Information Management Services,Large,Programme Expenditure
UK Statistics Family,Office for National Statistics,19/03/2024,Exp - Purchase Of Goods/Services - Contractors,Testing,Parity Resources Limited,295368," 2,699.22 ",Information Management Services,Large,Programme Expenditure
UK Statistics Family,Office for National Statistics,19/03/2024,Exp - Short-Term Contract & Agency Staff - Full Cost,Interviewer Management FiF,Parity Resources Limited,295368," 7,150.16 ",Information Management Services,Large,Programme Expenditure
UK Statistics Family,Office for National Statistics,19/03/2024,Exp - Purchase Of Goods/Services - Field Costs,Interviewer Management FiF,Parity Resources Limited,295368," 1,875.06 ",Information Management Services,Large,Programme Expenditure
UK Statistics Family,Office for National Statistics,20/03/2024,Hosting,IT Operations,Crown Hosting Data Centres Limited,295483," 38,620.99 ",Information Management Services,SME,Programme Expenditure
UK Statistics Family,Office for National Statistics,20/03/2024,Exp - Purchase Of Goods And Services Consultants,Researcher Support And Data Access ,ITS Computing Limited,295486, 480.00 ,Information Management Services,Large,Programme Expenditure
UK Statistics Family,Office for National Statistics,20/03/2024,Hosting,IT Operations,ITS Computing Limited,295486," 48,400.00 ",Information Management Services,Large,Programme Expenditure
UK Statistics Family,Office for National Statistics,20/03/2024,Exp - Purchase Of Goods/Services - Postage,Survey Processing Centre,DHL Parcel Ltd,295488," 49,705.43 ",Postage,Large,Programme Expenditure
UK Statistics Family,Office for National Statistics,20/03/2024,Exp - Purchase Of Goods/Services - Postage,REPROGRAPHICS,Royal Mail Group Ltd,295491," 53,392.86 ",Postage,Large,Programme Expenditure
UK Statistics Family,Office for National Statistics,20/03/2024,Exp - Purchase Of Goods/Services - Postage,Survey Processing Centre,Royal Mail Group Ltd,295491, 507.57 ,Postage,Large,Programme Expenditure
UK Statistics Family,Office for National Statistics,20/03/2024,Exp - Purchase Of Goods/Services - Telecoms,IT Operations,High Speed Office (trading as hSo),295497," 27,298.80 ",Telecommunications,SME,Programme Expenditure
UK Statistics Family,Office for National Statistics,20/03/2024,Exp - Purchase Of Goods/Services - Telecoms,IT Operations,High Speed Office (trading as hSo),295497," 21,924.00 ",Telecommunications,SME,Programme Expenditure
UK Statistics Family,Office for National Statistics,20/03/2024,Exp - Purchase Of Goods/Services - Telecoms,IT Operations,High Speed Office (trading as hSo),295497," 7,632.00 ",Telecommunications,SME,Programme Expenditure
UK Statistics Family,Office for National Statistics,20/03/2024,Exp - Purchase Of Goods/Services - IT Contractual Services,CDIO UNGP,CTS (Cloud Technology Solutions Ltd),295500," 111,428.80 ",Information Management Services,Large,Programme Expenditure
UK Statistics Family,Office for National Statistics,20/03/2024,Hosting,CLOUD ARCHITECTURE,Amazon Web Services Inc,295501," 344,866.27 ",Information Management Services,Large,Programme Expenditure
UK Statistics Family,Office for National Statistics,20/03/2024,Permanent Staff Costs,FAST STREAM RECHARGES - CABINET OFFICE,Cabinet Office,295505," 508,931.00 ",Fast Stream Services,Large,Programme Expenditure
UK Statistics Family,Office for National Statistics,20/03/2024,EXP - PURCHASE OF GOODS/SERVICES - DATA ACQUISITION,Data As A Service,HMRC.,295506," 216,448.26 ",Data Acquisition,Large,Programme Expenditure
UK Statistics Family,Office for National Statistics,20/03/2024,"ICT Outsourcing, Maintenance And Support",IT Operations,Insight Direct,295509, 828.43 ,Software Licenses,Large,Programme Expenditure
UK Statistics Family,Office for National Statistics,20/03/2024,"ICT Outsourcing, Maintenance And Support",IT Operations,Insight Direct,295509," 233,418.30 ",Software Licenses,Large,Programme Expenditure
UK Statistics Family,Office for National Statistics,20/03/2024,Exp - Purchase Of Goods/Services - Telecoms,IT Operations,Gartner (CEB),295511," 54,480.00 ",Software Licenses,Large,Programme Expenditure
UK Statistics Family,Office for National Statistics,20/03/2024,Exp - Purchase Of Goods/Services - IT Contractual Services,Office Of Chief Data And Information,Alexander Mann Solutions Limited,295514," 51,059.16 ",Information Management Services,Large,Programme Expenditure
UK Statistics Family,Office for National Statistics,20/03/2024,Exp - Purchase Of Goods/Services - IT Contractual Services,Digital Delivery,ANDigital Limited,295515," 83,034.00 ",Information Management Services,large,Programme Expenditure
UK Statistics Family,Office for National Statistics,20/03/2024,Exp - Purchase Of Goods/Services - Incentive Payments,Interviewer Support,Pluxee UK Ltd,295519," 1,182.40 ",Survey Response Incentive Vouchers,Large,Programme Expenditure
UK Statistics Family,Office for National Statistics,20/03/2024,Exp - Purchase Of Goods/Services - Incentive Payments,Interviewer Support,Pluxee UK Ltd,295519, 208.44 ,Survey Response Incentive Vouchers,Large,Programme Expenditure
UK Statistics Family,Office for National Statistics,20/03/2024,Exp - Purchase Of Goods/Services - Incentive Payments,Interviewer Support,Pluxee UK Ltd,295519," 4,788.15 ",Survey Response Incentive Vouchers,Large,Programme Expenditure
UK Statistics Family,Office for National Statistics,20/03/2024,Exp - Purchase Of Goods/Services - Incentive Payments,Interviewer Support,Pluxee UK Ltd,295519," 1,672.38 ",Survey Response Incentive Vouchers,Large,Programme Expenditure
UK Statistics Family,Office for National Statistics,20/03/2024,Exp - Purchase Of Goods/Services - Incentive Payments,Interviewer Support,Pluxee UK Ltd,295519," 22,738.86 ",Survey Response Incentive Vouchers,Large,Programme Expenditure
UK Statistics Family,Office for National Statistics,20/03/2024,Exp - Purchase Of Goods/Services - Incentive Payments,Crime Statistics,Pluxee UK Ltd,295519," 1,686.60 ",Survey Response Incentive Vouchers,Large,Programme Expenditure
UK Statistics Family,Office for National Statistics,20/03/2024,Exp - Purchase Of Goods And Services Consultants,Economic Statistics,Parity Resources Limited,295520," 1,458.42 ",Information Management Services,Large,Programme Expenditure
UK Statistics Family,Office for National Statistics,20/03/2024,Exp - Purchase Of Goods And Services Consultants,Policy Secretariat,Parity Resources Limited,295520," 1,435.81 ",Information Management Services,Large,Programme Expenditure
UK Statistics Family,Office for National Statistics,20/03/2024,Exp - Purchase Of Goods/Services - Contractors,Testing,Parity Resources Limited,295520," 2,699.22 ",Information Management Services,Large,Programme Expenditure
UK Statistics Family,Office for National Statistics,20/03/2024,Exp - Purchase Of Goods/Services - Contractors,CDIO UNGP,Parity Resources Limited,295520," 4,600.50 ",Information Management Services,Large,Programme Expenditure
UK Statistics Family,Office for National Statistics,20/03/2024,Exp - Purchase Of Goods/Services - Contractors,Strategy And Architecture,Parity Resources Limited,295520," 7,999.96 ",Information Management Services,Large,Programme Expenditure
UK Statistics Family,Office for National Statistics,20/03/2024,Exp - Purchase Of Goods/Services - Contractors,Strategy And Architecture,Parity Resources Limited,295520," 4,500.00 ",Information Management Services,Large,Programme Expenditure
UK Statistics Family,Office for National Statistics,20/03/2024,Exp - Purchase Of Goods/Services - Contractors,IT Applications,Parity Resources Limited,295520," 3,900.00 ",Information Management Services,Large,Programme Expenditure
UK Statistics Family,Office for National Statistics,20/03/2024,Exp - Short-Term Contract & Agency Staff - Full Cost,Interviewer Management FiF,Parity Resources Limited,295520," 2,055.51 ",Information Management Services,Large,Programme Expenditure
UK Statistics Family,Office for National Statistics,20/03/2024,Exp - Purchase Of Goods/Services - Field Costs,Interviewer Management FiF,Parity Resources Limited,295520, 368.20 ,Information Management Services,Large,Programme Expenditure
UK Statistics Family,Office for National Statistics,21/03/2024,Training & Development,Crime Statistics,Natcen Social Research,295628," 4,080.00 ",Training and Educational Services,Large,Programme Expenditure
UK Statistics Family,Office for National Statistics,21/03/2024,Exp - Purchase Of Goods/Services - Incentive Payments,"External Surveys, Research and Insights",Natcen Social Research,295628," 51,393.00 ",Survey Response Incentive Vouchers,Large,Programme Expenditure
UK Statistics Family,Office for National Statistics,21/03/2024,EXP - PURCHASE OF GOODS/SERVICES - DATA ACQUISITION,Prices Division,Verian,295637," 39,410.40 ",Statistical Services,SME,Programme Expenditure
UK Statistics Family,Office for National Statistics,21/03/2024,EXP - PURCHASE OF GOODS/SERVICES -  NON IT CONTRACTUAL PAYMENTS,People Solutions,Health Partners Ltd,295644," 43,731.14 ",Occupational Health,Large,Programme Expenditure
UK Statistics Family,Office for National Statistics,21/03/2024,Exp - Purchase Of Goods/Services - IT Contractual Services,Office Of Chief Data And Information,Alexander Mann Solutions Limited,295645," 38,335.68 ",Information Management Services,Large,Programme Expenditure
UK Statistics Family,Office for National Statistics,21/03/2024,Exp - Purchase Of Goods/Services - Incentive Payments,Interviewer Support,Pluxee UK Ltd,295646," 25,576.84 ",Survey Response Incentive Vouchers,Large,Programme Expenditure
UK Statistics Family,Office for National Statistics,21/03/2024,Exp - Purchase Of Goods/Services - Incentive Payments,Interviewer Support,Pluxee UK Ltd,295646," 15,283.00 ",Survey Response Incentive Vouchers,Large,Programme Expenditure
UK Statistics Family,Office for National Statistics,21/03/2024,Exp - Purchase Of Goods/Services - Incentive Payments,Interviewer Support,Pluxee UK Ltd,295646, 103.53 ,Survey Response Incentive Vouchers,Large,Programme Expenditure
UK Statistics Family,Office for National Statistics,21/03/2024,Exp - Purchase Of Goods/Services - Incentive Payments,Interviewer Support,Pluxee UK Ltd,295646, 571.88 ,Survey Response Incentive Vouchers,Large,Programme Expenditure
UK Statistics Family,Office for National Statistics,21/03/2024,Exp - Purchase Of Goods/Services - Incentive Payments,Interviewer Support,Pluxee UK Ltd,295646," 3,337.61 ",Survey Response Incentive Vouchers,Large,Programme Expenditure
UK Statistics Family,Office for National Statistics,21/03/2024,Exp - Purchase Of Goods/Services - Incentive Payments,Interviewer Support,Pluxee UK Ltd,295646, 443.70 ,Survey Response Incentive Vouchers,Large,Programme Expenditure
UK Statistics Family,Office for National Statistics,21/03/2024,Exp - Purchase Of Goods/Services - Incentive Payments,Crime Statistics,Pluxee UK Ltd,295646," 1,321.24 ",Survey Response Incentive Vouchers,Large,Programme Expenditure
UK Statistics Family,Office for National Statistics,21/03/2024,Exp - Purchase Of Goods/Services - Incentive Payments,Crime Income And Wealth,Pluxee UK Ltd,295646, 433.84 ,Survey Response Incentive Vouchers,Large,Programme Expenditure
UK Statistics Family,Office for National Statistics,21/03/2024,Exp - Purchase Of Goods/Services - Incentive Payments,Crime Income And Wealth,Pluxee UK Ltd,295646, 69.02 ,Survey Response Incentive Vouchers,Large,Programme Expenditure
UK Statistics Family,Office for National Statistics,22/03/2024,Capital Major Works >25K,Property Newport,Vinci Construction UK Limited,295720," 294,000.00 ",Facilities Mangement Services,Large,Programme Expenditure
UK Statistics Family,Office for National Statistics,22/03/2024,Exp - Purchase Of Goods/Services - Accommodation & Bldng Management - Miscellaneous Minor Works,Property Newport,Vinci Construction UK Limited,295720," 39,542.82 ",Facilities Mangement Services,Large,Programme Expenditure
UK Statistics Family,Office for National Statistics,22/03/2024,Exp - Purchase Of Goods/Services - Other Travel,Corporate Centre,Corporate Travel Management ,295724," 50,539.30 ",Travel and Accommodation,SME,Programme Expenditure
UK Statistics Family,Office for National Statistics,22/03/2024,Exp - Purchase Of Goods And Services Consultants,Public Service Productivity Review,Nisra,295725," 165,661.92 ",Statistical Services,Large,Programme Expenditure
UK Statistics Family,Office for National Statistics,22/03/2024,EXP - PURCHASE OF GOODS/SERVICES - DATA ACQUISITION,Data As A Service,HMRC.,295731," 34,277.53 ",Data Acquisition,Large,Programme Expenditure
UK Statistics Family,Office for National Statistics,25/03/2024,Exp - Purchase Of Goods/Services - Other Travel,Corporate Centre,Corporate Travel Management ,295823," 277,353.06 ",Travel and Accommodation,SME,Programme Expenditure
UK Statistics Family,Office for National Statistics,25/03/2024,Exp - Purchase Of Goods/Services - Postage,Survey Processing Centre,DHL Parcel Ltd,295824," 33,272.41 ",Postage,Large,Programme Expenditure
UK Statistics Family,Office for National Statistics,25/03/2024,Exp - Purchase Of Goods And Services Consultants,INTEGRATED DATA STRATEGY AND DELIVERY,Pricewaterhousecoopers Llp,295825," 106,648.73 ",Consultancy,Large,Programme Expenditure
UK Statistics Family,Office for National Statistics,26/03/2024,Surveys,"External Surveys, Research and Insights",Natcen Social Research,296007," 212,974.84 ",Statistical Services,Large,Programme Expenditure
UK Statistics Family,Office for National Statistics,26/03/2024,Surveys,"External Surveys, Research and Insights",Nisra,296013," 283,632.68 ",Statistical Services,Large,Programme Expenditure
UK Statistics Family,Office for National Statistics,26/03/2024,Accommodation & Building Management,Interview Management IPS,London Borough of Hillingdon,296017," 27,669.55 ",Business Rates,Large,Programme Expenditure
UK Statistics Family,Office for National Statistics,08/03/2024,Exp - Purchase Of Goods/Servcies - Stationery,Lodgecard,Royal Bank of Scotland,30004509," 1,143.09 ",Multiple Procurement Card Purchases  - Stationery ,Large,Programme Expenditure
UK Statistics Family,Office for National Statistics,08/03/2024,Other Goods And Services,GPC,Royal Bank of Scotland,30004509," 43,064.44 ",Multiple Procurement Card Purchases - other goods/services  ,Large,Programme Expenditure
UK Statistics Family,Office for National Statistics,08/03/2024,Exp - Purchase Of Goods/Services - Other Travel,Car Hire,Royal Bank of Scotland,30004509," 43,976.12 ",Multiple Procurement Card Purchases - Vehicle Hire  ,Large,Programme Expenditure
UK Statistics Family,Office for National Statistics,18/03/2024,Electricity,Property Newport,Edf Energy,30004517," 33,815.50 ",Utility Costs,Large,Programme Expenditure
UK Statistics Family,Office for National Statistics,18/03/2024,Electricity,Property Titchfield,Edf Energy,30004518," 26,928.26 ",Utility Costs,Large,Programme Expenditure
UK Statistics Family,Office for National Statistics,27/03/2024,Surveys,HALE,University of Ghana Regional Institute of Population Studies (RIPS),30004539," 25,000.00 ",Collaborative Research Grant Funding,Large,Programme Expenditure
UK Statistics Family,Office for National Statistics,28/03/2024,FM Contract Payments,Vinci Payments,Vinci Construction UK Limited,30004545," 356,682.17 ",Facilities Mangement Services,Large,Programme Expenditure
UK Statistics Family,Office for National Statistics,28/03/2024,EXP - PURCHASE OF GOODS/SERVICES - DATA ACQUISITION,Prices Division,Verian,30004546," 223,080.00 ",Statistical Services,SME,Programme Expenditure
UK Statistics Family,Office for National Statistics,28/03/2024,Hosting,Social Survey Transformation Titchfield,Nisra,30004547," 339,000.00 ",Software Licenses,Large,Programme Expenditure
UK Statistics Family,Office for National Statistics,28/03/2024,Exp - Purchase Of Goods And Services Consultants,INTEGRATED DATA STRATEGY AND DELIVERY,Pricewaterhousecoopers Llp,30004548," 128,349.00 ",Consultancy,Large,Programme Expenditure
UK Statistics Family,Office for National Statistics,28/03/2024,Exp - Purchase Of Goods/Services - Other Travel,Corporate Centre,Corporate Travel Management ,30004549," 35,583.64 ",Travel and Accommodation,SME,Programme Expenditure
,,,,,,," 11,887,714.59 ",,,
